Cogmind - Beta 13 @@@ ROGUE MODE // 2024.04.18 @ 22:40:10 Player: Thaleia Result: Destroyed by G-47 Trooper with Particle Gun Performance ------------- Evolutions (3) 1500 Regions Visited (5) 1000 Robots Destroyed (17) 85 Value Destroyed (632) 632 Prototype IDs (1) 20 Alien Tech Used (0) 0 Bonus (193) 193 TOTAL SCORE: 3430 Bonus ------- Follower Combat Kills 193 Cogmind --------- Core Integrity 0/700 Matter 137/300 Energy 52/100 System Corruption 2% Temperature Cool (27) Movement Flying (42) Location -7/Factory Parts ------- > --- POWER (1) -------- (None) > --- PROPULSION (3) --- Field Propulsion Drive Field Propulsion Drive > --- UTILITY (6) ------ (None) > --- WEAPON (3) ------- (None) > --- INVENTORY (5) ---- Cooled Ion Engine Visual Processing Unit Insulated Plating Insulated Plating Gauss Cannon Peak State ------------ > --- POWER ------------ Improved Ion Engine > --- PROPULSION ------- Light Treads Light Treads Light Treads > --- UTILITY ---------- High-capacity Storage Unit Visual Processing Unit Experimental Sensor Array Target Analyzer Insulated Plating > --- WEAPON ----------- Heavy Assault Rifle Improved Light Cannon Missile Launcher > --- INVENTORY -------- Improved Ion Engine Light Nuclear Core Micro Nuclear Core Light Treads Light Treads Light Treads Improved Treads Visual Processing Unit Transmission Jammer Insulated Plating Insulated Plating Assault Rifle Assault Rifle Assault Rifle Improved Light Cannon Grenade Launcher Grenade Launcher Remote Datajack [Rating: 33] Favorites ----------- Power Improved Ion Engine Engine Improved Ion Engine Power Core Light Nuclear Core Propulsion Light Treads Treads Light Treads Leg Aluminum Leg Flight Unit Field Propulsion Drive Utility Experimental Sensor Array Device Experimental Sensor Array Storage High-capacity Storage Unit Processor Visual Processing Unit Protection Light Armor Plating Weapon Assault Rifle Energy Gun EM Pulse Gun Ballistic Gun Assault Rifle Ballistic Cannon Improved Light Cannon Launcher Grenade Launcher Build | -11 -10 -10 -9 -8 -7 ------- Run | Yrd Mat Min Mat Mat Fac Slots Evolved 6 | . . . 2 2 2 Power . | . . . . . . Propulsion 1 | . . . 1 . . Utility 4 | . . . 1 2 1 Weapon 1 | . . . . . 1 Parts Attached 39 | 6 2 2 8 9 12 Power 6 | 1 . . 1 2 2 Engine 4 | 1 . . 1 2 . Core 2 | . . . . . 2 Reactor . | . . . . . . Propulsion 12 | 2 . . 3 2 5 Treads 8 | . . . 3 2 3 Leg 2 | 2 . . . . . Wheel . | . . . . . . Hover . | . . . . . . Flight 2 | . . . . . 2 Utility 10 | 1 1 2 1 4 1 Device 1 | . . 1 . . . Storage 3 | 1 1 . . 1 . Processor 2 | . . . . 2 . Hackware . | . . . . . . Protection 4 | . . 1 1 1 1 Artifact . | . . . . . . Weapon 11 | 2 1 . 3 1 4 Energy Gun 1 | 1 . . . . . Energy Cannon . | . . . . . . Ballistic Gun 7 | 1 1 . 1 1 3 Ballistic Cannon 1 | . . . 1 . . Launcher 2 | . . . 1 . 1 Special Weapon . | . . . . . . Impact Weapon . | . . . . . . Slashing Weapon . | . . . . . . Piercing Weapon . | . . . . . . Special Melee Weapon . | . . . . . . Unidentified Prototypes 1 | . . 1 . . . Parts Lost 8 | . . . . . 8 Power 2 | . . . . . 2 Propulsion 2 | . . . . . 2 Utility 2 | . . . . . 2 Weapon 2 | . . . . . 2 Highest Loss Streak 7 | . . . . . 7 To Critical Strikes . | . . . . . . Average Slot Usage (%) 92 | . 88 100 96 95 84 Engine 9 | . 14 14 11 9 6 Treads 16 | . . . 28 27 21 Leg 9 | . 28 28 3 . . Device 7 | . . 5 11 9 6 Storage 11 | . 17 19 11 9 6 Processor 7 | . . . . 13 14 Protection 8 | . . 3 9 9 12 Energy Gun 5 | . 14 14 8 . . Ballistic Gun 10 | . 14 14 10 9 7 Ballistic Cannon 4 | . . . 2 9 6 Naked Turns 34 | . . . . . 34 Heaviest Build 64 | 13 24 24 23 58 64 Greatest Support 63 | 20 20 20 60 63 63 Greatest Overweight (x) 1 | . 1 1 . . 1 Average Overweight (x) . | . . . . . . Largest Inventory Capacity 20 | 8 10 10 10 20 20 Average Capacity 14 | 7 8 10 10 18 19 Most Carried 20 | 3 8 10 10 20 20 Average Carried 13 | 1 5 9 9 15 18 Final Capacity 20 | 8 10 10 10 20 5 Final Carried 20 | 3 8 10 10 20 5 Class Distribution -------------------- 100% | Mutant Dominant Class ---------------- Mutant | -10/Materials Mutant | -10/Mines Mutant | -9/Materials Mutant | -8/Materials Mutant | -7/Factory Resources | -11 -10 -10 -9 -8 -7 ----------- Run | Yrd Mat Min Mat Mat Fac Matter Collected 706 | 232 . 44 107 213 110 Remotely . | . . . . . . Salvage Created 590 | . . 12 78 338 162 Parts 40 | . . 3 5 26 6 Haulers Intercepted . | . . . . . . Recyclers Shooed 1 | . . 1 . . . Parts Field Recycled . | . . . . . . Retrieved Matter . | . . . . . . Parts Self-Destructed . | . . . . . . Prevented . | . . . . . . Kills | -11 -10 -10 -9 -8 -7 ------- Run | Yrd Mat Min Mat Mat Fac Combat Hostiles Destroyed 16 | . . . 2 10 4 Guns 3 | . . . 1 . 2 Cannons 11 | . . . . 10 1 AOE 2 | . . . 1 . 1 Classes Destroyed 7 | . . 1 1 2 3 Worker 1 | . . 1 . . . Swarmer 3 | . . . . 3 . Grunt 5 | . . . 2 3 . Brawler 1 | . . . . . 1 Duelist 1 | . . . . . 1 Sentry 5 | . . . . 4 1 Programmer 1 | . . . . . 1 Best Kill Streak 4 | . . 1 1 4 2 Combat Bots Only 4 | . . . 1 4 2 Max Kills in Single Turn 1 | . . 1 1 1 1 Gunslinging . | . . . . . . Exploded 1 | . . . 1 . 1 Melee . | . . . . . . Uniques/NPCs Destroyed . | . . . . . . Combat | -11 -10 -10 -9 -8 -7 -------- Run | Yrd Mat Min Mat Mat Fac Hostile Shots Fired 188 | . 4 3 2 25 154 Missed 56 | . 1 1 . 11 43 Damage Taken 2051 | . 32 115 29 183 1692 Core 751 | . . 8 . 34 709 Absorbed by Shields . | . . . . . . Ignored by Resistances 33 | . . . . . 33 Core Remaining (%) 97 | 100 . 96 100 93 . Volleys Fired 46 | . . . 7 17 22 Largest 3 | . . . 2 2 3 Hottest 98 | . . . 60 59 98 Shots Fired 91 | . . . 10 34 47 Gun 51 | . . . 8 17 26 Cannon 34 | . . . . 17 17 Launcher 6 | . . . 2 . 4 Special . | . . . . . . Kinetic 82 | . . . 5 34 43 Thermal . | . . . . . . Explosive 6 | . . . 2 . 4 Electromagnetic 3 | . . . 3 . . Robot Hit Streak 8 | . . . 7 7 8 Robot Miss Streak 4 | . . . 1 2 4 Penetration Max . | . . . . . . Secondary Targets . | . . . . . . Shots Hit Robots 60 | . . . 8 26 26 Core Hits 32 | . . 2 2 16 12 Critical Kills . | . . . . . . Critical Parts Destroyed 1 | . . . . 1 . Critical Strikes 6 | . . . . 4 2 Destroy 1 | . . . . 1 . Blast 5 | . . . . 3 2 Melee Attacks . | . . . . . . Impact . | . . . . . . Slashing . | . . . . . . Piercing . | . . . . . . Sneak Attacks . | . . . . . . Combat Hostiles . | . . . . . . Follow-up Attacks . | . . . . . . Damage Inflicted 1332 | . . 17 188 477 650 Guns 459 | . . . 73 135 251 Cannons 512 | . . . . 328 184 Explosions 308 | . . . 110 . 198 Melee . | . . . . . . Ramming 53 | . . 17 5 14 17 Kinetic 946 | . . . 48 463 435 Thermal . | . . . . . . Explosive 308 | . . . 110 . 198 Electromagnetic 25 | . . . 25 . . Impact . | . . . . . . Slashing . | . . . . . . Piercing . | . . . . . . Highest Corruption 2 | . . . . . 2 Average Corruption 1 | . . . . . 1 Corruption Purged . | . . . . . . Corruption Blocked . | . . . . . . Effects 12 | . . . . . 12 Message Errors 4 | . . . . . 4 Matter Fused 2 | . . . . . 2 Energy Discharges 4 | . . . . . 4 Data Loss (minor) 1 | . . . . . 1 Misfires 1 | . . . . . 1 Overload Shots . | . . . . . . Overflow Damage 5 | . . . 5 . . Projectiles . | . . . . . . Explosions 5 | . . . 5 . . Melee . | . . . . . . Knockbacks 1 | . . . . 1 . Impact . | . . . . . . Kinetic 1 | . . . . 1 . Secondary . | . . . . . . Self-Inflicted Damage 114 | . . . . . 114 Shots 2 | . . . . . 2 Rammed 8 | . . . 1 1 6 Targets Rammed 15 | . . 6 2 1 6 Kicked 7 | . . 6 1 . . Crushed . | . . . . . . Highest Temperature 46 | . . . . 9 46 Average Temperature 16 | . . . . 5 19 Received Heat Transfer 528 | . 18 . 9 81 420 Siege Activations . | . . . . . . Robots Corrupted . | . . . . . . Combat Hostiles . | . . . . . . Parts Fried . | . . . . . . Impact Corruptions . | . . . . . . Robots Melted . | . . . . . . Combat Hostiles . | . . . . . . Parts Melted . | . . . . . . Heat Transferred . | . . . . . . Parts Sabotaged . | . . . . . . Parts Stolen . | . . . . . . Parts Stripped . | . . . . . . Power Chain Reactions . | . . . . . . Alert | -11 -10 -10 -9 -8 -7 ------- Run | Yrd Mat Min Mat Mat Fac Peak Influence 297 | . 30 11 284 297 103 Initial 73 | . . 11 . 32 73 Average 55 | . 2 6 129 131 33 Maximum Alert Level 1 | . . . 1 1 . Low Security (%) 91 | 100 100 100 71 75 100 Level 1 8 | . . . 28 24 . Level 2 . | . . . . . . Level 3 . | . . . . . . Level 4 . | . . . . . . Level 5 . | . . . . . . High Security . | . . . . . . Max Security . | . . . . . . Squads Dispatched 9 | . 1 . 3 1 4 Investigation . | . . . . . . Extermination 2 | . . . . . 2 Reinforcement 5 | . 1 . 3 1 . Assault . | . . . . . . Garrison 2 | . . . . . 2 Intercept . | . . . . . . Searches Triggered . | . . . . . . Construction Impeded . | . . . . . . Haulers Reinforced . | . . . . . . Active Scanning Responses . | . . . . . . Cargo Convoy Interrupts . | . . . . . . Stealth | -11 -10 -10 -9 -8 -7 --------- Run | Yrd Mat Min Mat Mat Fac Distress Signals 5 | . 1 . 2 1 1 Communications Jammed . | . . . . . . Distress Signals . | . . . . . . Times Spotted 51 | . 4 3 13 15 16 Peak Tracking Total 11 | . 4 3 3 5 11 Tactical Retreats . | . . . . . . Traps | -11 -10 -10 -9 -8 -7 ------- Run | Yrd Mat Min Mat Mat Fac Traps Triggered 2 | . . . . . 2 Indirectly . | . . . . . . Trap Hack Attempts . | . . . . . . Triggered . | . . . . . . Disarmed . | . . . . . . Reprogrammed . | . . . . . . Reused . | . . . . . . Traps Extracted . | . . . . . . Installed . | . . . . . . Triggered . | . . . . . . Machines | -11 -10 -10 -9 -8 -7 ---------- Run | Yrd Mat Min Mat Mat Fac Machines Disabled . | . . . . . . Max in Single Turn . | . . . . . . Machines Repaired . | . . . . . . Machines Dismantled . | . . . . . . Machines Sabotaged . | . . . . . . Overloaded Fab Kills . | . . . . . . Hacking | -11 -10 -10 -9 -8 -7 --------- Run | Yrd Mat Min Mat Mat Fac Machines Accessed 2 | . . . 2 . . Terminals 2 | . . . 2 . . Fabricators . | . . . . . . Repair Stations . | . . . . . . Recycling Units . | . . . . . . Scanalyzers . | . . . . . . Garrison Access . | . . . . . . Total Hacks 3 | . . . 3 . . Successful 2 | . . . 2 . . Failed 1 | . . . 1 . . Catastrophic . | . . . . . . Database Lockouts . | . . . . . . Manual . | . . . . . . Terminals 3 | . . . 3 . . Fabricators . | . . . . . . Repair Stations . | . . . . . . Recycling Units . | . . . . . . Scanalyzers . | . . . . . . Garrison Access . | . . . . . . Terminal Hacks 2 | . . . 2 . . Zone Layout 2 | . . . 2 . . Fabricator Hacks . | . . . . . . Repair Station Hacks . | . . . . . . Recycling Unit Hacks . | . . . . . . Scanalyzer . | . . . . . . Garrison Access Hacks . | . . . . . . Unauthorized Hacks . | . . . . . . Terminals . | . . . . . . Fabricators . | . . . . . . Repair Stations . | . . . . . . Recycling Units . | . . . . . . Scanalyzers . | . . . . . . Garrison Access . | . . . . . . Data Cores Recovered . | . . . . . . Used . | . . . . . . Hacking Detections 1 | . . . 1 . . Full Trace Events . | . . . . . . Feedback Events . | . . . . . . Feedback Blocked . | . . . . . . Robot Schematics Acquired . | . . . . . . Robots Built . | . . . . . . Authchips . | . . . . . . Time . | . . . . . . Total Robot Build Rating . | . . . . . . Part Schematics Acquired . | . . . . . . Parts Built . | . . . . . . Authchips . | . . . . . . Time . | . . . . . . Total Part Build Rating . | . . . . . . Parts Repaired . | . . . . . . Time . | . . . . . . Parts Recycled . | . . . . . . Recycled Matter . | . . . . . . Retrieved Matter . | . . . . . . Retrieved Components . | . . . . . . Parts Scanalyzed . | . . . . . . Part Schematics Acquired . | . . . . . . Parts Damaged . | . . . . . . Bothacking | -11 -10 -10 -9 -8 -7 ------------ Run | Yrd Mat Min Mat Mat Fac Used RIF Installer . | . . . . . . Robots Hacked . | . . . . . . Non-combat . | . . . . . . Combat . | . . . . . . Robot Hacks Applied . | . . . . . . Relay Couplers Released . | . . . . . . Fabnet Peak Effective % . | . . . . . . Robots Rewired . | . . . . . . Allies Hacked . | . . . . . . Hacks Repelled . | . . . . . . Allies | -11 -10 -10 -9 -8 -7 -------- Run | Yrd Mat Min Mat Mat Fac Total Allies 3 | . . 3 . . . Largest Group 3 | . . 3 3 1 . Highest-Rated Group 40 | . . 40 40 8 . Highest-Rated Ally 16 | . . 16 16 8 . Total Orders . | . . . . . . Ally Attacks 52 | . . . 52 . . Total Damage 552 | . . . 552 . . Kills 8 | . . . 8 . . Allies Corrupted . | . . . . . . Allies Melted . | . . . . . . Intel | -11 -10 -10 -9 -8 -7 ------- Run | Yrd Mat Min Mat Mat Fac Robot Analysis Total . | . . . . . . Derelict Logs Recovered 2 | . . 2 . . . Drone Launches . | . . . . . . Drone Recoveries . | . . . . . . Exploration | -11 -10 -10 -9 -8 -7 ------------- Run | Yrd Mat Min Mat Mat Fac Turns Passed 3487 | 116 163 861 482 652 1213 Spaces Moved 1894 | 95 121 492 285 353 548 Core 90 | 14 . . . . 76 Treads 1052 | . . . 228 353 471 Legs 751 | 81 121 492 57 . . Wheels . | . . . . . . Hover . | . . . . . . Flight 1 | . . . . . 1 Fastest Speed 45 | 50 120 120 120 160 45 Average Speed 166 | 109 129 159 152 160 200 Slowest Speed 240 | 120 190 190 160 160 240 Overloaded Moves . | . . . . . . Propulsion Burnouts . | . . . . . . Robots Hopped . | . . . . . . Cave-ins Triggered . | . . . . . . Exploration Rate (%) 27 | 6 23 71 28 25 14 Regions Visited 5 Branch Regions 1 Pre-discovered Areas . | . . . . . . Known Exits Taken . | . . . . . . Unknown Exits Taken 5 | 1 1 1 1 1 . Scrap Searched 2 | . . 2 . . . Spaces Dug . | . . . . . . Terrain Destroyed 43 | . . . 11 . 32 Melee . | . . . . . . Projectile . | . . . . . . AOE 43 | . . . 11 . 32 Terrain Rammed . | . . . . . . Walls Destroyed . | . . . . . . Machines Disabled . | . . . . . . Actions | -11 -10 -10 -9 -8 -7 --------- Run | Yrd Mat Min Mat Mat Fac Total 2141 | 105 128 565 323 404 616 Wait 98 | . . 60 14 11 13 Move 1889 | 94 120 491 284 352 548 Hop . | . . . . . . Pick Up 38 | 5 5 4 4 10 10 Fast Attach 11 | 4 1 . 2 1 3 Attach 17 | 2 . 1 3 2 9 Detach 1 | . . . . 1 . Swap 11 | . 1 1 3 6 . Drop 15 | . 1 2 4 3 5 Fire 46 | . . . 7 17 22 Melee . | . . . . . . Ram 4 | . . . . . 4 Kick 7 | . . 6 1 . . Crush 4 | . . . 1 1 2 Escape Stasis . | . . . . . . Rewire . | . . . . . . Trap . | . . . . . . Miscellaneous . | . . . . . . Route ------- -11/Scrapyard -10/Materials -10/Mines -9/Materials (discovered 2 exits: *Mat / Min) -8/Materials -7/Factory History --------- Turn | Location | Event 6 | -11/Scrapyard | Discovered new exit (range 16) 117 | -11/Scrapyard | Entered Materials 239 | -10/Materials | Discovered new exit (range 16) 280 | -10/Materials | Entered Mines 281 | -10/Mines | YI-UF0 nonchalantly dropped a Grenade Launcher on the ground 302 | -10/Mines | Build established: Mutant 350 | -10/Mines | Learned Materials security intel 805 | -10/Mines | Found a damaged Exp. Sensor Array with a note attached 820 | -10/Mines | Found Prototype Device 821 | -10/Mines | Identified Exp. Sensor Array 961 | -10/Mines | Assisted by bots powering up and referring to "LRC-V3" 1095 | -10/Mines | Discovered new exit (range 15) 1141 | -10/Mines | Entered Materials 1141 | -9/Materials | Accompanied by 3 allies 1141 | -9/Materials | Evolved 2 slots: Propulsion x1, Utility x1 1142 | -9/Materials | Identified exit to Mines 1553 | -9/Materials | Discovered new exit (range 5) 1623 | -9/Materials | Entered another Materials area 1623 | -8/Materials | Accompanied by 1 ally 1623 | -8/Materials | Evolved 2 slots: Utility x2 1982 | -8/Materials | Discovered new exit (range 15) 2275 | -8/Materials | Entered Factory 2275 | -7/Factory | Evolved 2 slots: Utility x1, Weapon x1 3309 | -7/Factory | Garrison activated, responded to threat 3390 | -7/Factory | Lost 7 parts (1p2n2u2w) 3429 | -7/Factory | Released all parts (9) 3434 | -7/Factory | Core integrity fell below 50% 3483 | -7/Factory | Core integrity fell below 20% 3488 | -7/Factory | Destroyed by G-47 Trooper with Particle Gun Last Messages --------------- 03469_ K-01 Serf cleans the Subcomponent Replicator. 03473_ Dropped Imp. Light Cannon. 03473_ Acquired Gauss Cannon. 03474_ Critical hit (Burn: +37). 03476_ K-01 Serf cleans the Subcomponent Replicator. 03476_ Lgt. Nuclear Core destroyed. 03477_ U-05 Engineer lays Concrete. 03479_ K-01 Serf cleans the Subcomponent Replicator. 03482_ C-30 ARC bursts open, deploying its payload. 03482_ G-50 Soldier unfolds itself. 03482_ G-47 Trooper unfolds itself. 03483_ System corrupted: Energy discharge (-25). 03485_ Acquired Field Propulsion Drive. 03486_ K-01 Serf collects debris. 03487_ K-01 Serf destroyed. 03487_ Acquired Field Propulsion Drive. Map ----- +----------------------------------------------------+ | ?????????????????????????????????????????????????? | | ?????????????????????????????????????????????????? | | ?????????????????????????????????????????????????? | | ?????????????????????????????????????????????????? | | ?????????????????????????????????????????????????? | | ?????????????????????????????????????????????????? | | ?????????????????????????????????????????????????? | | ?????????????????????????????????????????????????? | | ?????????????????????????????????????????????????? | | ?????????????????????????????????????????????????? | | ?????????????????????????????????????????????????? | | ?????????????????????????????????????????????????? | | ?????????????????????????????????????????????????? | | ?????????????????????????????????????????????????? | | ?????????????# ? ???????????????????????????????? | | ?????????????# ???????????????????????????????? | | ? ???????????# ???????????????????????????????? | | ?????????# ??????????????????????????????? | | ?????????# ??????????????????????????????? | | ???????# ??????????????????????????????? | | ???????# ??????????????????????????????? | | ######## ###################???????????? | | ? """ ?????????? | | ""F"" ????????? | | "" "" "" "" "" ""="" ????????? | | "" "" "" "" "" @= u ????????? | | """ """ """ """ """ !!! ^ ????????? | | """ """ """ """ """w!!! !!! ????????? | | """ """ """ """ """ !!* !g!ag ?????????? | | p !!* gg%##########?????????? | | ! ] g !#??????????????????? | | g =%#??????????????????? | | ##############p#??????????????????? | | ^ g #????????????? #??????????????????? | | #??????????????#??????????????????? | | #?????????????????????????????????? | | #?????????????????????????????????? | | #?????????????????????????????????? | | ###########/#######??????????????????????????????? | | ?????# #??????????????????????????????? | | ?????# """" #??????????????????????????????? | | ?????# ""R"" #??????????????????????????????? | | ?????# "" "" #??????????????????????????????? | | ?????# ! #??????????????????????????????? | | ???### #??????????????????????????????? | | ??? # #??????????????????????????????? | | ???" # """"""" #??????????????????????????????? | | """ # """"""" /#??????????????????????????????? | | ?""" # """"""" #??????????????????????????????? | | ? # """"""" #??????????????????????????????? | +----------------------------------------------------+ Best States ------------- Heat Dissipation 34 Energy Generation 14 Energy Capacity 265 Matter Stores 300 Matter Capacity 300 Sight Range 18 Robot Scan Range 20 Terrain Scan Density 10 Armor Coverage 300 Resistance: EM 15 Evasion (%) 55 Target Analysis 5 Recoil Reduction 3 Item Schematics ----------------- None Robot Schematics ------------------ None Fabricated ------------ Nothing Alien Tech Used ----------------- None Achievements -------------- None Challenges ------------ None Game ------ Seed ThermicMappingNanoactuators Manual? 0 Play Time 00:20:16 Cumulative 11.1 hours Start 2024.04.18 @ 22:21:29 End 2024.04.18 @ 22:40:10 Sessions 1 Manual Loads 0 Difficulty Rogue Special Mode None Game No. 31 Rogue 31 Adventurer 0 Explorer 0 Win Type - Total 0 Types 0/0/0/0/0/0/0/0/0 Lore% 7 Gallery% 15 Achievement% 15 Wizard Run 0 Options --------- Layout 1 ASCII 0 Keyboard 1 Movement Arrows Keybinds 0 Fullscreen 1 Font 32/Tamsyn Map View 50x40 Zoom Use 0% Tactical HUD 1 Map Filters NONE Filters NONE Steam 1 RUN: d21ab6f9-8590-4487-ad42-d12bfd72ff42